[Event "Titled Tuesday Blitz February 07 Late 2023"]
[White "Vovk, Orest"]
[Black "Todev, Simeon"]
[WhiteFideId "14113490"]
[BlackFideId "2925133"]
[WhiteElo "2315"]
[BlackElo "2033"]
[Result "1-0"]
[Round "04"]
[TimeControl "180+2"]
[Date "2023.02.07"]
[WhiteClock "0:00:04"]
[BlackClock "0:00:02"]

1. h4 {[%clk 0:03:00]}  e5 {[%clk 0:02:50]} 2. h5 {[%clk 0:02:55]}  Bc5 {[%clk 0:02:47]} 3. Nf3 {[%clk 0:02:49]}  e4 {[%clk 0:02:42]} 4. d4 {[%clk 0:02:49]}  Bb6 {[%clk 0:02:34]} 5. Ne5 {[%clk 0:02:43]}  d5 {[%clk 0:02:31]} 6. h6 {[%clk 0:02:42]}  g6 {[%clk 0:02:27]} 7. a4 {[%clk 0:02:30]}  a5 {[%clk 0:02:20]} 8. e3 {[%clk 0:02:16]}  f5 {[%clk 0:02:12]} 9. c4 {[%clk 0:02:12]}  c6 {[%clk 0:02:08]} 10. Qb3 {[%clk 0:01:59]}  Nf6 {[%clk 0:01:59]} 11. Nc3 {[%clk 0:01:57]}  O-O {[%clk 0:01:56]} 12. cxd5 {[%clk 0:01:40]}  cxd5 {[%clk 0:01:54]} 13. f4 {[%clk 0:01:35]}  exf3 {[%clk 0:01:39]} 14. gxf3 {[%clk 0:01:34]}  f4 {[%clk 0:01:33]} 15. Nb5 {[%clk 0:01:22]}  Nc6 {[%clk 0:01:19]} 16. Bd2 {[%clk 0:01:13]}  Re8 {[%clk 0:01:04]} 17. exf4 {[%clk 0:01:02]}  Nxd4 {[%clk 0:00:58]} 18. Nxd4 {[%clk 0:01:02]}  Bxd4 {[%clk 0:00:59]} 19. O-O-O {[%clk 0:00:56]}  Bf5 {[%clk 0:00:54]} 20. Bd3 {[%clk 0:00:53]}  Rc8+ {[%clk 0:00:11]} 21. Kb1 {[%clk 0:00:52]}  Bxd3+ {[%clk 0:00:12]} 22. Qxd3 {[%clk 0:00:52]}  Bxe5 {[%clk 0:00:10]} 23. fxe5 {[%clk 0:00:50]}  Rxe5 {[%clk 0:00:10]} 24. Bc3 {[%clk 0:00:49]}  Rf5 {[%clk 0:00:10]} 25. Rhe1 {[%clk 0:00:38]}  Qd7 {[%clk 0:00:07]} 26. Qb5 {[%clk 0:00:26]}  Qxb5 {[%clk 0:00:05]} 27. axb5 {[%clk 0:00:27]}  Kf7 {[%clk 0:00:05]} 28. Bxa5 {[%clk 0:00:24]}  Rxf3 {[%clk 0:00:04]} 29. Bb4 {[%clk 0:00:20]}  Rc7 {[%clk 0:00:02]} 30. b6 {[%clk 0:00:18]}  Rd7 {[%clk 0:00:03]} 31. Rc1 {[%clk 0:00:15]}  Rb3 {[%clk 0:00:03]} 32. Bc5 {[%clk 0:00:09]}  Ne4 {[%clk 0:00:02]} 33. Bd4 {[%clk 0:00:06]}  Rd3 {[%clk 0:00:03]} 34. Rc7 {[%clk 0:00:05]}  Ke6 {[%clk 0:00:02]} 35. Bg7 {[%clk 0:00:04]} 1-0


[Site "https://www.chess.com"]

[Event "Titled Tuesday Blitz February 07 Late 2023"]
[White "Szente Varga, Fruzsina"]
[Black "Papayan, Oleg"]
[WhiteFideId "712264"]
[BlackFideId "4193911"]
[WhiteElo "2075"]
[BlackElo "2253"]
[Result "0-1"]
[Round "04"]
[TimeControl "180+2"]
[Date "2023.02.07"]
[WhiteClock "0:02:15"]
[BlackClock "0:01:39"]

1. e4 {[%clk 0:03:00]}  d5 {[%clk 0:02:54]} 2. exd5 {[%clk 0:03:00]}  Qxd5 {[%clk 0:02:55]} 3. Nc3 {[%clk 0:03:01]}  Qd8 {[%clk 0:02:55]} 4. d4 {[%clk 0:03:01]}  c6 {[%clk 0:02:56]} 5. Bc4 {[%clk 0:03:01]}  Bf5 {[%clk 0:02:56]} 6. Nge2 {[%clk 0:03:01]}  e6 {[%clk 0:02:57]} 7. Be3 {[%clk 0:03:00]}  Nd7 {[%clk 0:02:57]} 8. Qd2 {[%clk 0:03:00]}  Ngf6 {[%clk 0:02:56]} 9. O-O-O {[%clk 0:02:59]}  Bb4 {[%clk 0:02:56]} 10. f3 {[%clk 0:02:57]}  Qa5 {[%clk 0:02:46]} 11. a3 {[%clk 0:02:49]}  Bxa3 {[%clk 0:02:45]} 12. bxa3 {[%clk 0:02:49]}  Qxa3+ {[%clk 0:02:46]} 13. Kb1 {[%clk 0:02:50]}  Nb6 {[%clk 0:02:16]} 14. Bb3 {[%clk 0:02:46]}  Qxb3+ {[%clk 0:02:15]} 15. Ka1 {[%clk 0:02:45]}  Bxc2 {[%clk 0:02:12]} 16. Rc1 {[%clk 0:02:43]}  Nc4 {[%clk 0:01:57]} 17. Qxc2 {[%clk 0:02:43]}  Qxc2 {[%clk 0:01:55]} 18. Rxc2 {[%clk 0:02:44]}  Nxe3 {[%clk 0:01:56]} 19. Rb2 {[%clk 0:02:43]}  O-O-O {[%clk 0:01:53]} 20. Rhb1 {[%clk 0:02:41]}  b6 {[%clk 0:01:53]} 21. g3 {[%clk 0:02:38]}  Rd7 {[%clk 0:01:41]} 22. Rb4 {[%clk 0:02:15]}  Nc2+ {[%clk 0:01:39]} 0-1


[Site "https://www.chess.com"]

[Event "Titled Tuesday Blitz February 07 Late 2023"]
[White "Van Dael, Siem"]
[Black "Mortazavi, Ali"]
[WhiteFideId "1049771"]
[BlackFideId "401323"]
[WhiteElo "2319"]
[BlackElo "2333"]
[Result "1-0"]
[Round "04"]
[TimeControl "180+2"]
[Date "2023.02.07"]
[WhiteClock "0:01:38"]
[BlackClock "0:00:57"]

1. e4 {[%clk 0:03:00]}  c6 {[%clk 0:02:59]} 2. d4 {[%clk 0:03:01]}  d5 {[%clk 0:03:00]} 3. Nd2 {[%clk 0:03:01]}  dxe4 {[%clk 0:03:00]} 4. Nxe4 {[%clk 0:03:02]}  Nf6 {[%clk 0:03:01]} 5. Nxf6+ {[%clk 0:03:01]}  exf6 {[%clk 0:03:02]} 6. c3 {[%clk 0:03:02]}  Bd6 {[%clk 0:03:03]} 7. Bd3 {[%clk 0:03:02]}  O-O {[%clk 0:03:03]} 8. Qc2 {[%clk 0:03:03]}  Re8+ {[%clk 0:03:03]} 9. Ne2 {[%clk 0:03:04]}  h5 {[%clk 0:03:04]} 10. O-O {[%clk 0:03:00]}  h4 {[%clk 0:03:04]} 11. h3 {[%clk 0:02:59]}  Nd7 {[%clk 0:02:57]} 12. Bf4 {[%clk 0:02:52]}  Nf8 {[%clk 0:02:57]} 13. Bxd6 {[%clk 0:02:47]}  Qxd6 {[%clk 0:02:58]} 14. Rae1 {[%clk 0:02:47]}  b5 {[%clk 0:02:48]} 15. a4 {[%clk 0:02:46]}  a6 {[%clk 0:02:47]} 16. c4 {[%clk 0:02:39]}  bxc4 {[%clk 0:02:45]} 17. Bxc4 {[%clk 0:02:39]}  Be6 {[%clk 0:02:41]} 18. b3 {[%clk 0:02:38]}  Ng6 {[%clk 0:02:32]} 19. Rd1 {[%clk 0:02:30]}  Bd5 {[%clk 0:02:26]} 20. Bxd5 {[%clk 0:02:23]}  cxd5 {[%clk 0:02:12]} 21. Rfe1 {[%clk 0:02:18]}  Rab8 {[%clk 0:01:56]} 22. Qd3 {[%clk 0:02:04]}  a5 {[%clk 0:01:54]} 23. Nc3 {[%clk 0:01:50]}  Rxe1+ {[%clk 0:01:42]} 24. Rxe1 {[%clk 0:01:51]}  Rxb3 {[%clk 0:01:43]} 25. Re8+ {[%clk 0:01:51]}  Kh7 {[%clk 0:01:39]} 26. Qd1 {[%clk 0:01:48]}  Nf4 {[%clk 0:01:16]} 27. Qxb3 {[%clk 0:01:44]}  f5 {[%clk 0:01:06]} 28. Qb8 {[%clk 0:01:39]}  Qa3 {[%clk 0:00:57]} 29. Rh8+ {[%clk 0:01:38]}  Kg6 {[%clk 0:00:57]} 30. Qxf4 {[%clk 0:01:38]} 1-0


[Site "https://www.chess.com"]

[Event "Titled Tuesday Blitz February 07 Late 2023"]
[White "Mione, Dario"]
[Black "Fiorito, Francisco"]
[WhiteFideId "806625"]
[BlackFideId "180165"]
[WhiteElo "2228"]
[BlackElo "2305"]
[Result "1-0"]
[Round "04"]
[TimeControl "180+2"]
[Date "2023.02.07"]
[WhiteClock "0:00:47"]
[BlackClock "0:00:22"]

1. Nf3 {[%clk 0:02:55]}  Nf6 {[%clk 0:03:00]} 2. d4 {[%clk 0:02:53]}  d5 {[%clk 0:02:58]} 3. c4 {[%clk 0:02:52]}  dxc4 {[%clk 0:02:59]} 4. e3 {[%clk 0:02:52]}  e6 {[%clk 0:02:59]} 5. Bxc4 {[%clk 0:02:52]}  c5 {[%clk 0:03:00]} 6. O-O {[%clk 0:02:51]}  a6 {[%clk 0:02:58]} 7. a4 {[%clk 0:02:49]}  Be7 {[%clk 0:02:44]} 8. dxc5 {[%clk 0:02:47]}  Bxc5 {[%clk 0:02:44]} 9. Qxd8+ {[%clk 0:02:44]}  Kxd8 {[%clk 0:02:45]} 10. Rd1+ {[%clk 0:02:43]}  Ke7 {[%clk 0:02:45]} 11. Nc3 {[%clk 0:02:43]}  Nbd7 {[%clk 0:02:44]} 12. e4 {[%clk 0:02:38]}  Ng4 {[%clk 0:02:33]} 13. Nd4 {[%clk 0:02:13]}  g6 {[%clk 0:01:55]} 14. h3 {[%clk 0:02:10]}  Nge5 {[%clk 0:01:54]} 15. Be2 {[%clk 0:01:53]}  b6 {[%clk 0:01:48]} 16. Be3 {[%clk 0:01:51]}  Bb7 {[%clk 0:01:45]} 17. f3 {[%clk 0:01:51]}  Rhc8 {[%clk 0:01:42]} 18. Rac1 {[%clk 0:01:32]}  f6 {[%clk 0:01:36]} 19. Kf2 {[%clk 0:01:30]}  Bd6 {[%clk 0:01:32]} 20. Rd2 {[%clk 0:01:16]}  Nc4 {[%clk 0:01:05]} 21. Bxc4 {[%clk 0:01:14]}  Rxc4 {[%clk 0:01:06]} 22. Rcd1 {[%clk 0:01:14]}  Bb4 {[%clk 0:00:29]} 23. Nf5+ {[%clk 0:01:11]}  exf5 {[%clk 0:00:26]} 24. Rxd7+ {[%clk 0:01:10]}  Ke6 {[%clk 0:00:27]} 25. exf5+ {[%clk 0:01:07]}  gxf5 {[%clk 0:00:26]} 26. Rxb7 {[%clk 0:01:06]}  Ba5 {[%clk 0:00:24]} 27. Bxb6 {[%clk 0:01:04]}  Bxc3 {[%clk 0:00:25]} 28. bxc3 {[%clk 0:01:03]}  Rxc3 {[%clk 0:00:25]} 29. Rd2 {[%clk 0:00:58]}  a5 {[%clk 0:00:24]} 30. Rbd7 {[%clk 0:00:54]}  f4 {[%clk 0:00:23]} 31. Bd4 {[%clk 0:00:51]}  Ra3 {[%clk 0:00:22]} 32. Bb2 {[%clk 0:00:49]}  Rxa4 {[%clk 0:00:21]} 33. R7d6+ {[%clk 0:00:49]}  Kf5 {[%clk 0:00:21]} 34. Rxf6+ {[%clk 0:00:49]}  Kg5 {[%clk 0:00:21]} 35. Rd5+ {[%clk 0:00:48]}  Kh4 {[%clk 0:00:22]} 36. Rh6# {[%clk 0:00:47]} 1-0


[Site "https://www.chess.com"]

[Event "Titled Tuesday Blitz February 07 Late 2023"]
[White "Bas Mas, Jose Joaquin"]
[Black "Cueto, Jonny"]
[WhiteFideId "22219064"]
[BlackFideId "3300145"]
[WhiteElo "2197"]
[BlackElo "2122"]
[Result "1-0"]
[Round "04"]
[TimeControl "180+2"]
[Date "2023.02.07"]
[WhiteClock "0:00:31"]
[BlackClock "0:00:20"]

1. e4 {[%clk 0:03:00]}  e6 {[%clk 0:02:55]} 2. d4 {[%clk 0:03:00]}  d5 {[%clk 0:02:56]} 3. e5 {[%clk 0:03:00]}  c5 {[%clk 0:02:56]} 4. c3 {[%clk 0:03:00]}  Nc6 {[%clk 0:02:56]} 5. Nf3 {[%clk 0:03:01]}  Qb6 {[%clk 0:02:56]} 6. Bd3 {[%clk 0:03:01]}  cxd4 {[%clk 0:02:55]} 7. O-O {[%clk 0:03:01]}  dxc3 {[%clk 0:02:19]} 8. Nxc3 {[%clk 0:03:01]}  Bd7 {[%clk 0:02:20]} 9. a3 {[%clk 0:02:38]}  Rc8 {[%clk 0:01:44]} 10. Be3 {[%clk 0:01:55]}  Qd8 {[%clk 0:01:30]} 11. Nb5 {[%clk 0:01:41]}  a6 {[%clk 0:01:25]} 12. Nd6+ {[%clk 0:01:42]}  Bxd6 {[%clk 0:01:24]} 13. exd6 {[%clk 0:01:42]}  Nf6 {[%clk 0:01:21]} 14. Re1 {[%clk 0:01:30]}  O-O {[%clk 0:01:20]} 15. Bg5 {[%clk 0:01:28]}  h6 {[%clk 0:01:17]} 16. Bh4 {[%clk 0:01:28]}  Re8 {[%clk 0:01:00]} 17. Rc1 {[%clk 0:01:24]}  e5 {[%clk 0:00:58]} 18. Bb1 {[%clk 0:01:21]}  Bg4 {[%clk 0:00:57]} 19. Bxf6 {[%clk 0:01:11]}  Qxf6 {[%clk 0:00:50]} 20. Qxd5 {[%clk 0:01:11]}  Bxf3 {[%clk 0:00:37]} 21. gxf3 {[%clk 0:01:09]}  Rcd8 {[%clk 0:00:34]} 22. Rcd1 {[%clk 0:00:46]}  Nd4 {[%clk 0:00:29]} 23. Qe4 {[%clk 0:00:34]}  Nxf3+ {[%clk 0:00:20]} 24. Kh1 {[%clk 0:00:32]}  Nxe1 {[%clk 0:00:20]} 25. Qh7+ {[%clk 0:00:31]} 1-0


[Site "https://www.chess.com"]

[Event "Titled Tuesday Blitz February 07 Late 2023"]
[White "Talbi, Chafik"]
[Black "Danielyan, Vahe"]
[WhiteFideId "7903715"]
[BlackFideId "13304828"]
[WhiteElo "2224"]
[BlackElo "2346"]
[Result "0-1"]
[Round "04"]
[TimeControl "180+2"]
[Date "2023.02.07"]
[WhiteClock "0:00:12"]
[BlackClock "0:00:15"]

1. e4 {[%clk 0:02:25]}  c5 {[%clk 0:02:58]} 2. Nf3 {[%clk 0:02:25]}  d6 {[%clk 0:02:53]} 3. c3 {[%clk 0:02:24]}  Nf6 {[%clk 0:02:52]} 4. Bd3 {[%clk 0:02:24]}  g6 {[%clk 0:02:51]} 5. Bc2 {[%clk 0:02:24]}  Bg7 {[%clk 0:02:51]} 6. h3 {[%clk 0:02:24]}  O-O {[%clk 0:02:52]} 7. d4 {[%clk 0:02:25]}  cxd4 {[%clk 0:02:51]} 8. cxd4 {[%clk 0:02:25]}  a6 {[%clk 0:02:52]} 9. Nc3 {[%clk 0:02:24]}  b5 {[%clk 0:02:52]} 10. a3 {[%clk 0:02:24]}  Bb7 {[%clk 0:02:52]} 11. O-O {[%clk 0:02:23]}  Nbd7 {[%clk 0:02:52]} 12. Be3 {[%clk 0:02:17]}  Nb6 {[%clk 0:02:52]} 13. Nd2 {[%clk 0:02:10]}  Rc8 {[%clk 0:02:51]} 14. Rc1 {[%clk 0:02:05]}  Nc4 {[%clk 0:02:46]} 15. Nxc4 {[%clk 0:02:04]}  Rxc4 {[%clk 0:02:46]} 16. Bd3 {[%clk 0:02:02]}  Rxc3 {[%clk 0:02:44]} 17. Rxc3 {[%clk 0:01:55]}  Nxe4 {[%clk 0:02:44]} 18. Bxe4 {[%clk 0:01:45]}  Bxe4 {[%clk 0:02:43]} 19. Qg4 {[%clk 0:01:44]}  f5 {[%clk 0:02:37]} 20. Qe2 {[%clk 0:01:42]}  Qa8 {[%clk 0:02:01]} 21. f3 {[%clk 0:01:39]}  Bd5 {[%clk 0:01:58]} 22. Rfc1 {[%clk 0:01:36]}  Bc4 {[%clk 0:01:49]} 23. Qc2 {[%clk 0:01:21]}  e5 {[%clk 0:01:06]} 24. dxe5 {[%clk 0:01:02]}  Bxe5 {[%clk 0:01:00]} 25. Rxc4 {[%clk 0:01:00]}  bxc4 {[%clk 0:01:01]} 26. Qxc4+ {[%clk 0:01:01]}  Kh8 {[%clk 0:01:00]} 27. Rc2 {[%clk 0:00:44]}  Re8 {[%clk 0:00:55]} 28. Qf7 {[%clk 0:00:39]}  d5 {[%clk 0:00:42]} 29. Bh6 {[%clk 0:00:30]}  Bd4+ {[%clk 0:00:30]} 30. Kh1 {[%clk 0:00:25]}  Qb8 {[%clk 0:00:20]} 31. Rc7 {[%clk 0:00:23]}  Re1+ {[%clk 0:00:17]} 32. Kh2 {[%clk 0:00:20]}  Qxc7+ {[%clk 0:00:18]} 33. Qxc7 {[%clk 0:00:19]}  Be5+ {[%clk 0:00:18]} 34. Qxe5+ {[%clk 0:00:16]}  Rxe5 {[%clk 0:00:19]} 35. Bd2 {[%clk 0:00:16]}  Re2 {[%clk 0:00:19]} 36. Bc3+ {[%clk 0:00:16]}  Kg8 {[%clk 0:00:20]} 37. Kg3 {[%clk 0:00:15]}  Kf7 {[%clk 0:00:21]} 38. f4 {[%clk 0:00:15]}  Ke6 {[%clk 0:00:22]} 39. Kf3 {[%clk 0:00:15]}  Rc2 {[%clk 0:00:21]} 40. g4 {[%clk 0:00:15]}  fxg4+ {[%clk 0:00:19]} 41. hxg4 {[%clk 0:00:16]}  h5 {[%clk 0:00:19]} 42. gxh5 {[%clk 0:00:16]}  gxh5 {[%clk 0:00:19]} 43. Kg3 {[%clk 0:00:16]}  Kf5 {[%clk 0:00:19]} 44. Be5 {[%clk 0:00:15]}  Re2 {[%clk 0:00:17]} 45. Bd4 {[%clk 0:00:10]}  Re4 {[%clk 0:00:16]} 46. Be5 {[%clk 0:00:09]}  Rxe5 {[%clk 0:00:16]} 47. fxe5 {[%clk 0:00:10]}  Kxe5 {[%clk 0:00:17]} 48. b4 {[%clk 0:00:10]}  d4 {[%clk 0:00:18]} 49. a4 {[%clk 0:00:10]}  h4+ {[%clk 0:00:15]} 50. Kxh4 {[%clk 0:00:11]}  d3 {[%clk 0:00:15]} 51. b5 {[%clk 0:00:11]}  axb5 {[%clk 0:00:16]} 52. axb5 {[%clk 0:00:11]}  d2 {[%clk 0:00:16]} 53. b6 {[%clk 0:00:11]}  d1=Q {[%clk 0:00:15]} 54. b7 {[%clk 0:00:12]}  Qd8+ {[%clk 0:00:15]} 0-1


[Site "https://www.chess.com"]

[Event "Titled Tuesday Blitz February 07 Late 2023"]
[White "Iljin, Timofey"]
[Black "Jeziel_Vale"]
[WhiteFideId "14110180"]
[WhiteElo "2329"]
[BlackElo "2276"]
[Result "1-0"]
[Round "04"]
[TimeControl "180+2"]
[Date "2023.02.07"]
[WhiteClock "0:01:57"]
[BlackClock "0:00:52"]

1. d4 {[%clk 0:01:47]}  Nf6 {[%clk 0:02:58]} 2. c4 {[%clk 0:01:48]}  g6 {[%clk 0:02:58]} 3. Nc3 {[%clk 0:01:48]}  Bg7 {[%clk 0:02:59]} 4. e4 {[%clk 0:01:49]}  d6 {[%clk 0:02:59]} 5. f4 {[%clk 0:01:50]}  O-O {[%clk 0:02:59]} 6. Nf3 {[%clk 0:01:50]}  c5 {[%clk 0:02:59]} 7. d5 {[%clk 0:01:51]}  e6 {[%clk 0:03:00]} 8. Be2 {[%clk 0:01:51]}  exd5 {[%clk 0:03:00]} 9. cxd5 {[%clk 0:01:52]}  Re8 {[%clk 0:03:00]} 10. e5 {[%clk 0:01:53]}  dxe5 {[%clk 0:02:39]} 11. fxe5 {[%clk 0:01:54]}  Ng4 {[%clk 0:02:39]} 12. Bg5 {[%clk 0:01:55]}  Qb6 {[%clk 0:02:08]} 13. O-O {[%clk 0:01:55]}  Nxe5 {[%clk 0:02:01]} 14. Nxe5 {[%clk 0:01:56]}  Bxe5 {[%clk 0:02:02]} 15. Bc4 {[%clk 0:01:56]}  Qxb2 {[%clk 0:01:36]} 16. d6 {[%clk 0:01:56]}  Be6 {[%clk 0:01:32]} 17. Bxe6 {[%clk 0:01:56]}  Rxe6 {[%clk 0:01:33]} 18. Qf3 {[%clk 0:01:57]}  f6 {[%clk 0:01:28]} 19. Qd5 {[%clk 0:01:57]}  Kf7 {[%clk 0:01:09]} 20. Rab1 {[%clk 0:01:57]}  Qxc3 {[%clk 0:01:04]} 21. Rxb7+ {[%clk 0:01:57]}  Kf8 {[%clk 0:00:52]} 22. Bh6+ {[%clk 0:01:57]} 1-0


[Site "https://www.chess.com"]

[Event "Titled Tuesday Blitz February 07 Late 2023"]
[White "Kazmaier, Daniel"]
[Black "Tinmaz, Kerem"]
[WhiteFideId "2606089"]
[BlackFideId "44559151"]
[WhiteElo "2171"]
[BlackElo "2177"]
[Result "1-0"]
[Round "04"]
[TimeControl "180+2"]
[Date "2023.02.07"]
[WhiteClock "0:01:09"]
[BlackClock "0:00:07"]

1. d4 {[%clk 0:03:00]}  d5 {[%clk 0:02:56]} 2. Bg5 {[%clk 0:03:00]}  h6 {[%clk 0:02:55]} 3. Bh4 {[%clk 0:03:00]}  c5 {[%clk 0:02:55]} 4. Nf3 {[%clk 0:02:59]}  Qb6 {[%clk 0:02:43]} 5. Nbd2 {[%clk 0:02:56]}  cxd4 {[%clk 0:02:14]} 6. Nb3 {[%clk 0:02:54]}  g5 {[%clk 0:02:14]} 7. Bg3 {[%clk 0:02:53]}  Bg7 {[%clk 0:02:15]} 8. Nfxd4 {[%clk 0:02:47]}  Nc6 {[%clk 0:02:13]} 9. c3 {[%clk 0:02:42]}  Nf6 {[%clk 0:02:01]} 10. Nxc6 {[%clk 0:02:35]}  bxc6 {[%clk 0:02:02]} 11. Be5 {[%clk 0:02:35]}  O-O {[%clk 0:01:54]} 12. e3 {[%clk 0:02:34]}  Bf5 {[%clk 0:01:43]} 13. h4 {[%clk 0:02:26]}  g4 {[%clk 0:01:37]} 14. Bd3 {[%clk 0:02:20]}  Bxd3 {[%clk 0:01:30]} 15. Qxd3 {[%clk 0:02:21]}  h5 {[%clk 0:01:21]} 16. Bxf6 {[%clk 0:01:59]}  Bxf6 {[%clk 0:01:19]} 17. Qf5 {[%clk 0:01:59]}  g3 {[%clk 0:00:46]} 18. Qxh5 {[%clk 0:01:51]}  gxf2+ {[%clk 0:00:45]} 19. Kxf2 {[%clk 0:01:52]}  Kg7 {[%clk 0:00:28]} 20. Rh3 {[%clk 0:01:48]}  Rh8 {[%clk 0:00:27]} 21. Qf5 {[%clk 0:01:28]}  Rag8 {[%clk 0:00:15]} 22. h5 {[%clk 0:01:14]}  a5 {[%clk 0:00:05]} 23. h6+ {[%clk 0:01:11]}  Rxh6 {[%clk 0:00:06]} 24. Rxh6 {[%clk 0:01:11]}  Kxh6 {[%clk 0:00:06]} 25. Rh1+ {[%clk 0:01:11]}  Kg7 {[%clk 0:00:07]} 26. Rh7+ {[%clk 0:01:09]}  Kf8 {[%clk 0:00:07]} 27. Qc8+ {[%clk 0:01:09]}  Qd8 {[%clk 0:00:07]} 28. Qxd8# {[%clk 0:01:09]} 1-0


[Site "https://www.chess.com"]

[Event "Titled Tuesday Blitz February 07 Late 2023"]
[White "Gutkin, Ilya"]
[Black "Ardila, Oscar Humberto"]
[WhiteFideId "16203470"]
[BlackFideId "4404742"]
[WhiteElo "2273"]
[BlackElo "1982"]
[Result "1-0"]
[Round "04"]
[TimeControl "180+2"]
[Date "2023.02.07"]
[WhiteClock "0:00:29"]
[BlackClock "0:00:03"]

1. Nf3 {[%clk 0:03:00]}  Nf6 {[%clk 0:02:58]} 2. g3 {[%clk 0:03:01]}  g6 {[%clk 0:02:43]} 3. b3 {[%clk 0:03:01]}  Bg7 {[%clk 0:02:44]} 4. Bb2 {[%clk 0:03:02]}  O-O {[%clk 0:02:44]} 5. Bg2 {[%clk 0:03:02]}  d6 {[%clk 0:02:45]} 6. d4 {[%clk 0:03:02]}  Nbd7 {[%clk 0:02:45]} 7. O-O {[%clk 0:03:03]}  c6 {[%clk 0:02:45]} 8. Nbd2 {[%clk 0:03:02]}  Qc7 {[%clk 0:02:45]} 9. e4 {[%clk 0:03:02]}  e5 {[%clk 0:02:45]} 10. Re1 {[%clk 0:03:02]}  Re8 {[%clk 0:02:45]} 11. Nc4 {[%clk 0:03:02]}  b5 {[%clk 0:02:29]} 12. dxe5 {[%clk 0:03:02]}  dxe5 {[%clk 0:02:29]} 13. Qd6 {[%clk 0:02:52]}  Qxd6 {[%clk 0:02:25]} 14. Nxd6 {[%clk 0:02:53]}  Re6 {[%clk 0:02:26]} 15. Nxc8 {[%clk 0:02:53]}  Rxc8 {[%clk 0:02:25]} 16. Rad1 {[%clk 0:02:49]}  Re7 {[%clk 0:02:07]} 17. Bh3 {[%clk 0:02:33]}  Rc7 {[%clk 0:02:06]} 18. Re2 {[%clk 0:01:55]}  b4 {[%clk 0:02:01]} 19. Nd2 {[%clk 0:01:53]}  Nc5 {[%clk 0:01:55]} 20. f3 {[%clk 0:01:48]}  Nfd7 {[%clk 0:01:12]} 21. Nc4 {[%clk 0:01:48]}  Nb6 {[%clk 0:01:12]} 22. Rd8+ {[%clk 0:01:44]}  Bf8 {[%clk 0:01:07]} 23. Nxe5 {[%clk 0:01:35]}  Ne6 {[%clk 0:00:51]} 24. Bxe6 {[%clk 0:01:24]}  fxe6 {[%clk 0:00:42]} 25. Red2 {[%clk 0:01:16]}  c5 {[%clk 0:00:32]} 26. Ng4 {[%clk 0:01:01]}  Kf7 {[%clk 0:00:14]} 27. Bf6 {[%clk 0:00:45]}  Red7 {[%clk 0:00:10]} 28. Ne5+ {[%clk 0:00:43]}  Kxf6 {[%clk 0:00:05]} 29. Nxd7+ {[%clk 0:00:43]}  Nxd7 {[%clk 0:00:03]} 30. R2xd7 {[%clk 0:00:42]}  Rxd7 {[%clk 0:00:03]} 31. Rxd7 {[%clk 0:00:42]}  Ke5 {[%clk 0:00:02]} 32. Kf2 {[%clk 0:00:38]}  c4 {[%clk 0:00:03]} 33. bxc4 {[%clk 0:00:35]}  Bc5+ {[%clk 0:00:03]} 34. Ke2 {[%clk 0:00:35]}  a5 {[%clk 0:00:03]} 35. Kd3 {[%clk 0:00:32]}  h5 {[%clk 0:00:03]} 36. h3 {[%clk 0:00:28]}  Bf2 {[%clk 0:00:03]} 37. f4+ {[%clk 0:00:27]}  Kf6 {[%clk 0:00:04]} 38. e5+ {[%clk 0:00:28]}  Kf5 {[%clk 0:00:03]} 39. Rf7# {[%clk 0:00:29]} 1-0


[Site "https://www.chess.com"]

[Event "Titled Tuesday Blitz February 07 Late 2023"]
[White "Guzman Moneo, Alberto"]
[Black "Bilan, Danila"]
[WhiteFideId "2209616"]
[BlackFideId "24161918"]
[WhiteElo "2170"]
[BlackElo "2303"]
[Result "0-1"]
[Round "04"]
[TimeControl "180+2"]
[Date "2023.02.07"]
[WhiteClock "0:01:17"]
[BlackClock "0:00:29"]

1. e4 {[%clk 0:03:00]}  c6 {[%clk 0:02:59]} 2. Nf3 {[%clk 0:02:59]}  d5 {[%clk 0:03:00]} 3. d3 {[%clk 0:02:59]}  Bg4 {[%clk 0:02:59]} 4. Be2 {[%clk 0:02:58]}  e6 {[%clk 0:02:59]} 5. Ne5 {[%clk 0:02:57]}  Bxe2 {[%clk 0:02:56]} 6. Qxe2 {[%clk 0:02:58]}  Nd7 {[%clk 0:02:51]} 7. Nxd7 {[%clk 0:02:53]}  Qxd7 {[%clk 0:02:50]} 8. O-O {[%clk 0:02:54]}  Bc5 {[%clk 0:02:44]} 9. Nc3 {[%clk 0:02:49]}  Ne7 {[%clk 0:02:42]} 10. Bg5 {[%clk 0:02:48]}  Ng6 {[%clk 0:02:40]} 11. Kh1 {[%clk 0:02:43]}  h6 {[%clk 0:02:29]} 12. Bd2 {[%clk 0:02:42]}  O-O-O {[%clk 0:02:24]} 13. f4 {[%clk 0:02:39]}  f5 {[%clk 0:02:23]} 14. e5 {[%clk 0:02:36]}  Ne7 {[%clk 0:02:17]} 15. Na4 {[%clk 0:02:36]}  Bb6 {[%clk 0:02:15]} 16. Nxb6+ {[%clk 0:02:36]}  axb6 {[%clk 0:02:16]} 17. d4 {[%clk 0:02:36]}  g5 {[%clk 0:02:07]} 18. a4 {[%clk 0:02:34]}  Ng6 {[%clk 0:02:00]} 19. fxg5 {[%clk 0:02:32]}  hxg5 {[%clk 0:02:00]} 20. Bxg5 {[%clk 0:02:32]}  Rdg8 {[%clk 0:01:59]} 21. a5 {[%clk 0:02:27]}  b5 {[%clk 0:01:27]} 22. a6 {[%clk 0:02:25]}  b6 {[%clk 0:01:26]} 23. a7 {[%clk 0:02:23]}  Kb7 {[%clk 0:01:26]} 24. Bf6 {[%clk 0:02:16]}  Rh7 {[%clk 0:01:23]} 25. b3 {[%clk 0:02:14]}  Ka8 {[%clk 0:01:21]} 26. c4 {[%clk 0:02:10]}  Nh4 {[%clk 0:00:45]} 27. Rf2 {[%clk 0:01:35]}  dxc4 {[%clk 0:00:31]} 28. bxc4 {[%clk 0:01:35]}  Qxd4 {[%clk 0:00:30]} 29. Rd1 {[%clk 0:01:28]}  Qxc4 {[%clk 0:00:29]} 30. Qxc4 {[%clk 0:01:28]}  bxc4 {[%clk 0:00:30]} 31. Rd6 {[%clk 0:01:19]}  Rxa7 {[%clk 0:00:30]} 32. g3 {[%clk 0:01:17]}  Ra1+ {[%clk 0:00:29]} 0-1


[Site "https://www.chess.com"]